[Event "EYTCC Open U18 2022"]
[Site "Thessaloniki"]
[Date "2022.07.18"]
[Round "7.6"]
[White "Koellner, Ruben Gideon"]
[Black "Deuer, Marius"]
[Result "1/2-1/2"]
[ECO "A45"]
[WhiteElo "2422"]
[BlackElo "2338"]
[Annotator "TA"]
[PlyCount "87"]
[EventDate "2022.07.12"]
[EventType "team-tourn"]
[EventCountry "GRE"]
[SourceTitle "playchess.com"]
[Source "ChessBase"]
[SourceQuality "1"]
[WhiteTeam "Germany"]
[BlackTeam "Germany"]
[WhiteTeamCountry "GER"]
[BlackTeamCountry "GER"]
[TimeControl "40/5400+30:1800+30"]

{[%evp 16,87,21,21,29,23,32,26,12,16,36,19,18,40,37,44,29,31,39,37,54,56,92,35,44,44,48,31,56,63,56,61,57,62,50,64,47,49,23,34,58,42,35,49,75,71,66,71,251,252,243,0,0,0,0,0,0,0,0,0,0,0,0,0,0,0,0,0,0,0,0,0,0,0]} 1. d4 {[%emt 0:00:00]} Nf6 {[%emt 0:00:00]} 2. Bg5 {[%emt 0:00:00]} Ne4 {[%emt 0:00:00]} 3. Bf4 {[%emt 0:00:00]} c5 {[%emt 0:00:03]} 4. f3 {[%emt 0:00:06]} Qa5+ {[%emt 0:00:05]} 5. c3 {[%emt 0:00:03]} Nf6 {[%emt 0:00:07]} 6. d5 {[%emt 0:00:08]} Qb6 {[%emt 0:00:06]} 7. Bc1 {[%emt 0:00:03]} e6 {[%emt 0:00:05]} 8. e4 {[%emt 0:00:07]} exd5 {[%emt 0:00:07]} 9. exd5 {[%emt 0:00:03]} d6 {[%emt 0:00:09] A45: Trompowsky Attack.} 10. c4 {[%emt 0:00:26]} g6 {[%emt 0:00:44]} 11. Bd3 {[%emt 0:00:21]} Bg7 {[%emt 0:01:27] White has an edge.} 12. Qe2+ {[%emt 0:00:04]} Kd8 {[%emt 0:00:04] ...Re8 is the strong threat.} 13. Qc2 {[%emt 0:00:04]} (13. Bg5 $2 Re8 14. Be4 h6 $19) 13... Nbd7 {[%emt 0:00:47]} 14. Nc3 {[%emt 0:09:32]} Ne5 {[%emt 0:03:25]} 15. Nge2 {[%emt 0:01:02]} Re8 {[%emt 0:01:39]} 16. O-O {[%emt 0:00:54]} Ke7 {[%emt 0:00:15]} 17. Ng3 {[%emt 0:04:30]} Kf8 {[%emt 0:13:00]} 18. Be2 {[%emt 0:00:39]} h5 {[%emt 0:23:21] [#]} 19. h3 $146 {[%emt 0:28:28]} (19. f4 $1 $16 {[%cal Rf4e5]} Neg4 20. f5) ({Predecessor:} 19. f4 Neg4 20. f5 h4 21. fxg6 hxg3 22. gxf7 gxh2+ 23. Kh1 Re5 24. Bxg4 Bxg4 25. Rxf6 Bxf6 {½-½ (69) Matic,Z-Greig,S (2223) ICCF email 2015}) 19... h4 $14 {[%emt 0:06:03]} 20. Nge4 {[%emt 0:00:29]} Nxe4 {[%emt 0:03:49]} 21. Nxe4 {[%emt 0:00:07]} (21. Qxe4 {[#]} Ng4 $1 22. Qxe8+ Kxe8 $17) 21... Bf5 {[%emt 0:03:47]} 22. Bg5 {[%emt 0:04:23]} Nd7 {[%emt 0:05:56]} 23. Rab1 {[%emt 0:03:55]} ({Reject} 23. Bxh4 Qxb2 24. Qxb2 Bxb2 $15) 23... Nf6 {[%emt 0:00:31][%cal Rf6e4]} 24. Bd3 {[%emt 0:02:28]} (24. Bxf6 Bxf6 25. Kh1 Kg7 $11) ({Don't play} 24. Bxh4 Nxe4 25. fxe4 Rxe4 26. Rxf5 gxf5 $15) 24... Nxd5 {[%emt 0:01:15]} 25. cxd5 {[%emt 0:08:08] aiming for Kh1.} c4+ $1 {[%emt 0:00:09]} 26. Kh1 {[%emt 0:00:12]} cxd3 {[%emt 0:00:18]} 27. Qxd3 {[%emt 0:00:05]} Qb4 {[%emt 0:08:46][%cal Rf5e4]} 28. Rfe1 {[%emt 0:07:33]} Bxe4 {[%emt 0:08:46]} 29. fxe4 {[%emt 0:00:37]} ({Of course not} 29. Rxe4 Rxe4 30. fxe4 Re8 $11) 29... Rac8 {[%emt 0:01:14]} 30. Bxh4 {[%emt 0:03:44]} Qd4 {[%emt 0:06:17]} 31. Qf3 {[%emt 0:03:29] Black must now prevent Rf1.} Rc2 $2 {[%emt 0:00:41]} (31... Kg8 $16) 32. Rf1 $18 {[%emt 0:00:14][%csl Gf1][%cal Rf3f7]} Rc7 {[%emt 0:00:05]} 33. Qg3 $2 {[%emt 0:08:37]} ({Only move:} 33. Rbc1 $18 Qb6 34. Bf6) 33... Kg8 $1 $11 {[%emt 0:03:46] The position is equal.} 34. Qxd6 {[%emt 0:06:11]} Be5 $36 {[%emt 0:01:01][%mdl 2048] White is under pressure.} 35. Bf6 {[%emt 0:00:54][%cal Od6c7] Strongly threatening Qxc7!} Qxe4 {[%emt 0:02:04]} 36. Bxe5 {[%emt 0:00:20] Dancing on a razor blade.} Qxe5 {[%emt 0:00:04]} 37. Qxe5 {[%emt 0:08:21]} Rxe5 {[%emt 0:00:06][%mdl 4096] Endgame KRR-KRR} 38. Rfd1 {[%emt 0:00:22]} Rd7 {[%emt 0:00:39]} 39. d6 {[%emt 0:00:00]} Re6 {[%emt 0:00:00]} 40. Rbc1 {[%emt 0:00:00]} Rexd6 {[%emt 0:00:00]} 41. Rxd6 {[%emt 0:02:36]} Rxd6 {[%emt 0:02:03]} 42. Rc7 {[%emt 0:00:35]} Rb6 {[%emt 0:01:11]} 43. b3 {[%emt 0:00:13]} Ra6 {[%emt 0:01:31]} 44. Rc2 {[%emt 0:00:18] Weighted Error Value: White=0.11 (very precise) /Black=0.13 (very precise)} 1/2-1/2

[Event "EYTCC Open U18 2022"]
[Site "Thessaloniki"]
[Date "2022.07.18"]
[Round "7.7"]
[White "Colbow, Collin"]
[Black "Koelle, Tobias"]
[Result "1/2-1/2"]
[ECO "B30"]
[WhiteElo "2325"]
[BlackElo "2436"]
[Annotator "TA"]
[PlyCount "58"]
[EventDate "2022.07.12"]
[EventType "team-tourn"]
[EventCountry "GRE"]
[SourceTitle "playchess.com"]
[Source "ChessBase"]
[SourceQuality "1"]
[WhiteTeam "Germany"]
[BlackTeam "Germany"]
[WhiteTeamCountry "GER"]
[BlackTeamCountry "GER"]
[TimeControl "40/5400+30:1800+30"]

{[%evp 14,58,22,12,13,14,28,0,0,0,0,-20,5,-16,-18,-12,-9,-21,-13,-20,42,-10,-10,-17,-20,-23,0,0,0,0,0,0,0,0,0,0,0,0,0,0,0,0,31,0,0,0,27]} 1. e4 {[%emt 0:00:04] Roiz,M} c5 {[%emt 0:00:07]} 2. Nf3 {[%emt 0:00:19]} Nc6 {[%emt 0:00:05]} 3. Nc3 {[%emt 0:05:43]} e5 {[%emt 0:00:56]} 4. Bc4 {[%emt 0:01:30]} d6 {[%emt 0:00:18]} 5. d3 {[%emt 0:01:33]} Be7 {[%emt 0:00:13]} 6. O-O {[%emt 0:00:33]} Nf6 {[%emt 0:00:22]} 7. Ng5 {[%emt 0:01:37]} O-O {[%emt 0:00:21]} 8. f4 {[%emt 0:01:42]} Bg4 {[%emt 0:08:24] B30: Sicilian: 2...Nc6 3 Bb5, lines without ...g6.} 9. Qe1 {[%emt 0:07:03]} h6 {[%emt 0:14:02]} 10. Nf3 {[%emt 0:14:46]} Bxf3 {[%emt 0:10:52]} 11. gxf3 {[%emt 0:01:20]} Nh5 {[%emt 0:00:45]} 12. Nd5 {[%emt 0:05:00]} Bh4 {[%emt 0:03:06] [#]} 13. Qe2 $146 {[%emt 0:05:13]} ({Predecessor:} 13. Qd1 Kh7 14. f5 Bg5 15. Rf2 g6 16. Bxg5 Qxg5+ 17. Rg2 Qd8 18. c3 gxf5 19. f4 Nxf4 20. Nxf4 exf4 21. Qh5 Qf6 22. Qxf5+ Qxf5 23. exf5 Rae8 {½-½ (23) Nijboer,F (2567)-Kuzubov,Y (2530) Groningen 2004 CBM 105 [Roiz,M]}) 13... b5 {[%emt 0:05:35]} 14. Bb3 {[%emt 0:01:49]} ({Wrong is} 14. Bxb5 $2 Nd4 15. Qg2 Nxb5 $19) 14... a5 {[%emt 0:02:02] [#] And now ...a4 would win.} 15. a4 $1 {[%emt 0:07:34]} Nd4 {[%emt 0:05:21]} 16. Qg2 {[%emt 0:00:29]} Nxf4 {[%emt 0:14:50]} ({Black should try} 16... Nxb3 $11 17. cxb3 exf4) 17. Bxf4 {[%emt 0:10:07]} ({White should play} 17. Nxf4 $14 exf4 18. Bd5) 17... exf4 $11 {[%emt 0:00:17]} 18. axb5 {[%emt 0:04:11]} Nxb3 {[%emt 0:00:51]} 19. cxb3 {[%emt 0:00:14]} Bf6 {[%emt 0:05:29]} (19... Rb8 $5 {[%cal Rb8b5]}) 20. Qd2 {[%emt 0:08:09]} ({Reject} 20. Nxf4 Bd4+ 21. Kh1 Rb8 $15) 20... Bd4+ {[%emt 0:02:03]} 21. Kh1 {[%emt 0:00:39]} Be3 {[%emt 0:03:29]} 22. Qe1 {[%emt 0:01:49]} Bd4 {[%emt 0:00:57]} 23. Qd2 {[%emt 0:03:07]} Be3 {[%emt 0:00:30]} 24. Qe1 {[%emt 0:00:04]} Bd4 {[%emt 0:00:28]} 25. Ra2 {[%emt 0:07:16]} Kh8 {[%emt 0:07:45]} 26. Qd2 {[%emt 0:01:13]} Be3 {[%emt 0:01:16]} 27. Qe1 {[%emt 0:00:59]} Bd4 {[%emt 0:01:51]} 28. Qd2 {[%emt 0:04:46]} ({Much worse is} 28. Nxf4 Qb6 $11) 28... Be3 {[%emt 0:01:21]} 29. Qe1 {[%emt 0:03:40]} Bd4 {[%emt 0:00:19] An even fight not without its subleties.  Weighted Error Value: White=0.08 (flawless) /Black=0.07 (flawless)} 1/2-1/2

[Event "EYTCC Open U18 2022"]
[Site "Thessaloniki"]
[Date "2022.07.18"]
[Round "7.8"]
[White "Krastev, Alexander"]
[Black "Cherniaiev, Tykhon"]
[Result "1/2-1/2"]
[ECO "C50"]
[WhiteElo "2435"]
[BlackElo "2186"]
[Annotator "TA"]
[PlyCount "48"]
[EventDate "2022.07.12"]
[EventType "team-tourn"]
[EventCountry "GRE"]
[SourceTitle "playchess.com"]
[Source "ChessBase"]
[SourceQuality "1"]
[WhiteTeam "Germany"]
[BlackTeam "Germany"]
[WhiteTeamCountry "GER"]
[BlackTeamCountry "GER"]
[TimeControl "40/5400+30:1800+30"]

{[%evp 13,48,10,16,4,11,12,7,-12,7,-25,-11,-23,-19,-50,-59,-89,-93,-133,-122,-85,-52,-55,-78,-52,-71,-66,0,-42,0,-17,0,-65,0,-25,0,-62,0]} 1. e4 {[%emt 0:00:03]} e5 {[%emt 0:00:20]} 2. Nf3 {[%emt 0:02:25]} Nc6 {[%emt 0:00:19]} 3. Bc4 {[%emt 0:00:06]} Bc5 {[%emt 0:00:47]} 4. Nc3 {[%emt 0:02:18]} Nf6 {[%emt 0:02:00]} 5. d3 {[%emt 0:00:07]} d6 {[%emt 0:02:53]} 6. Na4 {[%emt 0:00:15]} Bb6 {[%emt 0:01:28]} 7. Nxb6 {[%emt 0:02:37]} axb6 {[%emt 0:00:20]} 8. a3 {[%emt 0:00:09] C50: Hungarian Defence and Giuoco Pianissimo.} h6 {[%emt 0:00:42]} 9. h3 {[%emt 0:16:58]} O-O {[%emt 0:08:33]} 10. Qe2 {[%emt 0:08:49] The position is equal.} Be6 {[%emt 0:08:58] [#]} 11. Bd2 $146 {[%emt 0:00:53]} ({Predecessor:} 11. Bxe6 fxe6 12. O-O Qe8 13. g4 Qf7 14. Kg2 Nh7 15. c3 Ne7 16. Ne1 Ng6 17. Kg1 {1-0 (37) Bolhari,O (2152)-Vicente,J (1839) Figueira da Foz 2010}) 11... d5 {[%emt 0:03:03]} 12. exd5 {[%emt 0:01:58]} Bxd5 {[%emt 0:00:29]} 13. O-O-O {[%emt 0:08:06]} Re8 {[%emt 0:03:40]} 14. Bc3 {[%emt 0:18:07][%cal Rf3e5]} Nd4 $1 {[%emt 0:05:22]} 15. Bxd4 {[%emt 0:00:17]} exd4 {[%emt 0:00:27]} 16. Qd2 {[%emt 0:00:04]} Qd6 {[%emt 0:14:21][%cal Oa8a3]} 17. Nxd4 {[%emt 0:13:45] [#]} Rxa3 $1 {[%emt 0:01:47]} 18. bxa3 {[%emt 0:08:22]} Qxa3+ {[%emt 0:00:08]} 19. Kb1 {[%emt 0:00:03]} Ra8 {[%emt 0:00:45]} (19... Bxc4 $1 $15 20. c3 (20. dxc4 $2 Ne4 $19) 20... Bd5) 20. Nb3 {[%emt 0:00:19] Threatens to win with Qc3.} (20. c3 $5 {[%cal Rd2b2]} Qa1+ 21. Kc2 Qa4+ 22. Kc1 (22. Bb3 Bxb3+ 23. Nxb3 Qa2+ 24. Kc1 Qxb3 $15) 22... Qa1+ 23. Kc2 Qa4+ 24. Kc1 (24. Bb3 Bxb3+ 25. Nxb3 Qa2+ 26. Kc1 Qxb3 $15) 24... Qa1+ 25. Kc2 $11) 20... Qa2+ {[%emt 0:00:12][%mdl 1024] Black has compensation.} 21. Kc1 {[%emt 0:00:04] [#] Qb4 is the strong threat.} Qa3+ {[%emt 0:00:06]} (21... b5 $11 {should be considered.} 22. Qc3 bxc4 23. dxc4 Bxg2) 22. Kb1 $15 {[%emt 0:00:04] Hoping for Qc3.} Qa2+ {[%emt 0:00:05]} (22... b5 $5 23. Qc3 (23. Bxd5 Nxd5 24. c4 Qxb3+ 25. Qb2 Nc3+ 26. Kc1 Qxb2+ 27. Kxb2 Nxd1+ 28. Rxd1 Kf8 $17) 23... bxc4 24. dxc4 Bxg2 $11) 23. Kc1 {[%emt 0:00:04]} Qa3+ {[%emt 0:00:13]} (23... b5 $5 24. Qc3 bxc4 25. dxc4 Bxg2 $11) 24. Kb1 {[%emt 0:00:05] And now Qc3 would win.} Qa2+ {[%emt 0:00:05] Weighted Error Value: White=0.19 (very precise) /Black=0.18 (very precise)} (24... b5 $1 $15 25. Qc3 (25. Bxd5 Nxd5 26. c4 Qxb3+ 27. Qb2 Nc3+ 28. Kc1 Na2+ 29. Kb1 Nc3+ 30. Kc1 Qxb2+ 31. Kxb2 Nxd1+ 32. Rxd1 Kf8 $17) 25... bxc4 26. dxc4 Bxg2) 1/2-1/2

[Event "EYTCC Open U18 2022"]
[Site "Thessaloniki"]
[Date "2022.07.18"]
[Round "7.9"]
[White "Borhy, Marcell"]
[Black "Milikow, Yoav"]
[Result "1-0"]
[ECO "A20"]
[WhiteElo "2411"]
[BlackElo "2452"]
[Annotator "TA"]
[PlyCount "53"]
[EventDate "2022.07.12"]
[EventType "team-tourn"]
[EventCountry "GRE"]
[SourceTitle "playchess.com"]
[Source "ChessBase"]
[SourceQuality "1"]
[WhiteTeam "Hungary"]
[BlackTeam "Israel"]
[WhiteTeamCountry "HUN"]
[BlackTeamCountry "ISR"]
[TimeControl "40/5400+30:1800+30"]

{[%evp 9,53,18,18,12,32,13,6,14,29,8,14,12,10,0,0,0,0,0,0,0,0,-35,-21,-32,63,43,58,14,14,3,36,42,96,105,121,92,113,120,112,131,267,260,439,137,137,144]} 1. c4 {[%emt 0:00:07]} e5 {[%emt 0:00:02]} 2. g3 {[%emt 0:00:10]} c6 {[%emt 0:00:05]} 3. Nf3 {[%emt 0:00:07]} e4 {[%emt 0:00:06]} 4. Nd4 {[%emt 0:00:06]} d5 {[%emt 0:00:04]} 5. cxd5 {[%emt 0:00:08]} Qxd5 {[%emt 0:00:03]} 6. Nc2 {[%emt 0:00:09] A20: English Opening: 1...e5.} Nf6 {[%emt 0:00:11]} 7. Nc3 {[%emt 0:00:12]} Qe5 {[%emt 0:00:09]} 8. Bg2 {[%emt 0:00:37] The position is equal.} Be7 {[%emt 0:00:59]} 9. d3 {[%emt 0:21:12]} exd3 {[%emt 0:00:06]} 10. Qxd3 {[%emt 0:00:05]} O-O {[%emt 0:00:40] [#]} 11. Qe3 $146 {[%emt 0:00:57]} ({Predecessor:} 11. O-O Qh5 12. Bf4 Rd8 13. Qf3 Bg4 14. Qe3 Bc5 15. Qe5 Qxe5 16. Bxe5 Nbd7 17. Bf4 {0-1 (35) Krysa,L (2503)-Hammer,J (2662) Chess.com INT 2018}) 11... Qc7 {[%emt 0:04:33]} 12. O-O {[%emt 0:01:12]} Bf5 {[%emt 0:03:04]} 13. Nd4 {[%emt 0:01:39]} Bg6 {[%emt 0:00:57]} 14. Rd1 {[%emt 0:16:27]} Na6 {[%emt 0:00:44]} 15. f3 {[%emt 0:01:17]} Rad8 {[%emt 0:03:46]} 16. Qf2 {[%emt 0:01:03]} Bc5 {[%emt 0:02:58]} (16... Qb6 $15) 17. e4 $1 $14 {[%emt 0:01:25]} Nd7 {[%emt 0:05:31]} 18. Bf4 {[%emt 0:04:19]} Ne5 {[%emt 0:00:45]} 19. Na4 {[%emt 0:00:48]} Bd6 {[%emt 0:00:39]} 20. Bf1 {[%emt 0:08:26]} Qa5 {[%emt 0:01:31]} ({Better is} 20... Nc5 $14 21. Bxe5 Nxa4 22. Bxd6 Qxd6) 21. Nc3 $16 {[%emt 0:01:27]} Bc7 {[%emt 0:03:33]} 22. Be3 {[%emt 0:05:02]} Bb6 {[%emt 0:02:58]} 23. a3 {[%emt 0:00:56]} Qc5 {[%emt 0:02:24][%cal Od8d4] [#] ...Rxd4! is the strong threat.} 24. Be2 {[%emt 0:06:03]} Nc4 {[%emt 0:08:10]} (24... f6 $16 25. f4 Qe7) 25. b4 $18 {[%emt 0:00:41]} Nxb4 {[%emt 0:00:01]} (25... Nxe3 26. bxc5 Nxd1 27. Rxd1 Nxc5) 26. Na4 $2 {[%emt 0:07:02]} (26. axb4 $18 {and the rest is easy.} Qxb4 27. Ra4 Qxc3 28. Bxc4) 26... Nxe3 $16 {[%emt 0:00:31]} 27. Nxc5 {[%emt 0:00:06] Weighted Error Value: White=0.20 (precise) /Black=0.26 (precise)} 1-0

[Event "EYTCC Open U18 2022"]
[Site "Thessaloniki"]
[Date "2022.07.18"]
[Round "7.10"]
[White "Rozen, Eytan"]
[Black "Juhasz, Agoston"]
[Result "1-0"]
[ECO "A36"]
[WhiteElo "2465"]
[BlackElo "2344"]
[Annotator "TA"]
[PlyCount "55"]
[EventDate "2022.07.12"]
[EventType "team-tourn"]
[EventCountry "GRE"]
[SourceTitle "playchess.com"]
[Source "ChessBase"]
[SourceQuality "1"]
[WhiteTeam "Israel"]
[BlackTeam "Hungary"]
[WhiteTeamCountry "ISR"]
[BlackTeamCountry "HUN"]
[TimeControl "40/5400+30:1800+30"]

{[%evp 9,55,10,0,3,0,0,0,0,0,0,7,8,14,7,12,-11,25,16,60,54,68,56,50,45,97,80,107,109,88,108,179,184,221,217,318,307,290,144,151,186,147,159,325,345,325,297,2366,2203]} 1. c4 {[%emt 0:00:06]} g6 {[%emt 0:00:25]} 2. Nc3 {[%emt 0:00:14]} c5 {[%emt 0:00:28]} 3. g3 {[%emt 0:00:14]} Bg7 {[%emt 0:00:06]} 4. Bg2 {[%emt 0:00:02]} Nc6 {[%emt 0:00:19]} 5. d3 {[%emt 0:00:20]} d6 {[%emt 0:07:20]} 6. Qd2 {[%emt 0:01:00] A36: Symmetrical English vs ...g6: 4 Bg2 Bg7.} e6 {[%emt 0:01:31] [#]} 7. e3 $146 {[%emt 0:01:46]} ({Predecessor:} 7. b3 Nge7 8. Bb2 O-O 9. h4 h6 10. Nf3 d5 11. cxd5 exd5 12. Na4 Bxb2 13. Nxb2 Kh7 {1-0 (47) So,W (2772)-Dominguez Perez,L (2758) Saint Louis 2021}) 7... Nge7 {[%emt 0:00:23]} 8. Nge2 {[%emt 0:00:03] The position is equal.} O-O {[%emt 0:01:41]} 9. O-O {[%emt 0:00:04]} a6 {[%emt 0:08:16]} 10. b3 {[%emt 0:00:16]} b5 {[%emt 0:09:16]} 11. Bb2 {[%emt 0:00:19][%cal Oc3b5]} Rb8 {[%emt 0:02:45]} 12. Rac1 {[%emt 0:04:31]} h6 {[%emt 0:15:42]} 13. Rfd1 {[%emt 0:04:12]} Qd7 {[%emt 0:04:30]} 14. Ne4 {[%emt 0:06:37]} f5 $1 {[%emt 0:05:53] White must now prevent ...Bxb2.} 15. Bxg7 {[%emt 0:00:30] White is more active.} Kxg7 {[%emt 0:00:04]} 16. N4c3 {[%emt 0:01:56]} e5 {[%emt 0:14:35]} (16... bxc4 $14 17. dxc4 Rd8) 17. Nd5 {[%emt 0:08:48]} Nxd5 {[%emt 0:03:37]} 18. cxd5 {[%emt 0:00:15]} ({Don't take} 18. Bxd5 bxc4 19. dxc4 Nb4 $14) 18... Ne7 {[%emt 0:02:41]} 19. f4 {[%emt 0:03:15]} Bb7 {[%emt 0:01:57]} (19... exf4 $16 {keeps fighting.} 20. Nxf4 Qa7) 20. e4 $1 $18 {[%emt 0:02:19]} Rbc8 {[%emt 0:04:12]} 21. Qb2 {[%emt 0:00:55]} Qc7 {[%emt 0:05:11]} (21... Kg8 {was called for.} 22. fxe5 dxe5) 22. fxe5 {[%emt 0:03:21]} dxe5 {[%emt 0:00:17]} 23. d4 {[%emt 0:00:22]} (23. Nf4 $18 {is more deadly. Ne6+ is the strong threat.} Rf6 24. Ne6+ Rxe6 25. dxe6) 23... fxe4 $16 {[%emt 0:01:09] [#]} 24. d6 $36 {[%emt 0:05:24][%mdl 2048] White is on the roll.} (24. Rxc5 Qb6 $11) 24... Qxd6 {[%emt 0:00:14]} 25. dxe5 {[%emt 0:00:01][%cal Bd4e5,Be5e6][%mdl 32]} Qb8 {[%emt 0:05:18] [#]} (25... Qb6 $16) 26. Nf4 $1 $18 {[%emt 0:04:34] Hoping for Rd7.} ({Weaker is} 26. Rd7 Rc7 $14) 26... Kg8 {[%emt 0:01:06]} 27. Rd7 {[%emt 0:02:03] Threatens to win with e6.} Rfe8 $2 {[%emt 0:03:41]} (27... Rf7 28. Bh3 Bc6) 28. e6 {[%emt 0:01:03] Weighted Error Value: White=0.11 (very precise) /Black=0.29 (precise)} 1-0

[Event "EYTCC Open U18 2022"]
[Site "Thessaloniki"]
[Date "2022.07.18"]
[Round "7.11"]
[White "Palczert, Matyas"]
[Black "Ben Ari, Yannay"]
[Result "0-1"]
[ECO "B32"]
[WhiteElo "2321"]
[BlackElo "2411"]
[Annotator "TA"]
[PlyCount "63"]
[EventDate "2022.07.12"]
[EventType "team-tourn"]
[EventCountry "GRE"]
[SourceTitle "playchess.com"]
[Source "ChessBase"]
[SourceQuality "1"]
[WhiteTeam "Hungary"]
[BlackTeam "Israel"]
[WhiteTeamCountry "HUN"]
[BlackTeamCountry "ISR"]
[TimeControl "40/5400+30:1800+30"]

{[%evp 12,63,7,0,6,0,0,0,0,0,0,-12,0,0,0,0,0,0,0,0,0,7,6,-5,53,27,25,27,29,11,35,30,33,26,33,19,21,0,14,-16,20,-67,21,-12,-12,-12,-12,-14,58,58,51,-393,-386,-29998]} 1. e4 {[%emt 0:00:04]} c5 {[%emt 0:00:01]} 2. Nf3 {[%emt 0:00:11][%cal Bg1f3,Bf3d4,Bd4b5][%mdl 32]} Nc6 {[%emt 0:00:06]} 3. d4 {[%emt 0:00:13]} cxd4 {[%emt 0:00:03]} 4. Nxd4 {[%emt 0:00:10]} e5 {[%emt 0:00:06]} 5. Nb5 {[%emt 0:00:18]} d6 {[%emt 0:00:01]} 6. N5c3 {[%emt 0:00:38]} Nf6 {[%emt 0:03:28]} 7. Na3 {[%emt 0:04:33]} Be6 {[%emt 0:02:40] B33: Sicilian: Pelikan and Sveshnikov Variations.} 8. Bg5 {[%emt 0:03:47]} Be7 {[%emt 0:06:18][%cal Bf8e7,Be7f6,Bf6g5][%mdl 32]} 9. Nc4 {[%emt 0:02:22]} O-O {[%emt 0:22:23][%cal Of6e4] White must now prevent ...Nxe4! The position is equal.} 10. Bxf6 Bxf6 {[%emt 0:00:02]} 11. Qxd6 {[%emt 0:13:40]} Qc8 {[%emt 0:06:20] And now ...Rd8 would win.} 12. Qd2 {[%emt 0:04:58]} Rd8 {[%emt 0:08:56]} 13. Nd5 {[%emt 0:01:25]} Bxd5 {[%emt 0:11:47]} 14. exd5 {[%emt 0:00:17]} Ne7 {[%emt 0:01:59]} 15. Ne3 {[%emt 0:01:11]} Bg5 {[%emt 0:10:17][%cal Oe7d5] Threatens to win with ...Nxd5!} 16. c4 {[%emt 0:00:56]} Nf5 {[%emt 0:01:26]} 17. Rc1 {[%emt 0:07:22] [#]} e4 $146 {[%emt 0:04:48]} ({Black should try} 17... Qc5 $11 18. Rc3 Nh4) ({Predecessor:} 17... Qc5 18. Rc3 Rac8 19. Be2 b5 20. cxb5 Qb6 21. Qd3 Rxc3 22. bxc3 Nxe3 23. fxe3 Bxe3 24. Rf1 Bc5 25. Kd1 g6 26. g4 {½-½ (26) Brinkmann,W (2367)-Geissler,W (2315) GER email 2007}) 18. Be2 {[%emt 0:12:17]} Nxe3 {[%emt 0:02:57]} 19. fxe3 {[%emt 0:00:14]} Qc5 {[%emt 0:00:12]} 20. Rc3 {[%emt 0:01:11]} Rd6 {[%emt 0:02:48]} 21. O-O {[%emt 0:09:31]} (21. g3 {feels hotter.} Rb6 22. Kf2 a5 23. Rb1) 21... Rb6 {[%emt 0:01:21]} 22. Kh1 {[%emt 0:08:12]} a5 {[%emt 0:04:01]} 23. Rd1 {[%emt 0:03:22]} Rd8 {[%emt 0:07:01]} 24. b3 {[%emt 0:06:19]} Rh6 {[%emt 0:01:09]} 25. Bg4 {[%emt 0:10:11]} b6 {[%emt 0:00:53]} 26. Bh3 {[%emt 0:01:10]} (26. g3 $11) 26... Rf6 {[%emt 0:00:47] Black is more active.} ({Black should play} 26... Bf6 $1 $15) 27. Qd4 {[%emt 0:04:08]} (27. g3 {keeps more tension.} Rh6 28. Kg2 Bf6 29. Rcc1) 27... Qxd4 {[%emt 0:01:00]} 28. exd4 {[%emt 0:00:02]} Rf2 $40 {[%emt 0:01:08][%mdl 128] Black is up to no good.} 29. c5 {[%emt 0:03:23]} e3 {[%emt 0:00:30]} (29... bxc5 $11 30. dxc5 Rxd5 $1) 30. Re1 $1 $14 {[%emt 0:02:04] Strongly threatening c6.} (30. cxb6 e2 31. Rg1 Rf1 32. g3 Rxg1+ 33. Kxg1 e1=Q+ 34. Bf1 Qxc3 35. Kg2 Qc2+ 36. Kh3 Rd6) 30... bxc5 {[%emt 0:00:30]} 31. Rxc5 {[%emt 0:00:53][%mdl 8192] [#]} (31. dxc5 $14 {was the only good move.} Rxd5 32. c6) 31... e2 $1 $19 {[%emt 0:00:28] ( -> ...Rf1+)} 32. d6 $2 {Weighted Error Value: White=0.34/Black=0.18 (very precise)} (32. Kg1 $2 {is a self mate.} Rf1+ 33. Rxf1 Be3+ 34. Kh1 exf1=Q#) (32. g3 $19 Bd2 33. Rcc1) 0-1